bitfinex/quotes_SOLUSD_20250125
["timestamp","ask_amount","ask_price","bid_price","bid_amount"]
[1737796448762,20.0,248.49,248.47,1.8463]
[1737796449440,81.4,248.48,248.47,1.8463]
[1737796449760,101.4,248.48,248.47,1.8463]
[1737796450778,81.4,248.48,248.47,1.8463]
[1737796454545,81.43,248.52,248.47,1.8463]
[1737796457974,81.4,248.51,248.47,1.8463]
[1737796458342,81.4,248.51,248.46,0.063]
[1737796463793,81.4,248.5,248.46,0.063]
[1737796468405,0.03,248.52,248.47,1.7266]
[1737796468576,0.03,248.52,248.48,7.3718]
[1737796469075,0.03,248.52,248.49,0.40227739]
[1737796469482,0.03,248.52,248.48,31.148684]
[1737796469679,0.03,248.52,248.5,4.0241]
[1737796472388,0.03,248.52,248.5,23.0541]
[1737796474274,0.03,248.62,248.52,5.7504]
[1737796479784,0.03,248.62,248.53,25.17912445]
[1737796479983,0.03,248.62,248.54,4.0234]
[1737796480592,0.03,248.62,248.52,5.7502]
[1737796484614,81.4,248.61,248.52,5.7502]
[1737796492527,81.4,248.61,248.52,5.8132]
[1737796495525,81.4,248.61,248.53,23.776884]
[1737796495701,0.03,248.62,248.53,24.17915894]
[1737796496609,0.03,248.62,248.54,4.0234]
[1737796496810,0.03,248.62,248.55,0.40216799]
[1737796497718,0.03,248.62,248.57,23.776884]
[1737796498211,0.03,248.62,248.57,24.1790178]
[1737796498827,0.03,248.62,248.58,4.0228]
[1737796499815,0.03,248.62,248.58,10.9253]
[1737796500320,0.03,248.62,248.59,26.526884]
[1737796500624,0.03,248.63,248.62,24.776884]
[1737796500824,0.03,248.71,248.65,23.776884]
[1737796501003,0.03,248.71,248.61,157.6]
[1737796501812,0.03,248.71,248.62,27.799084]
[1737796502826,0.03,248.71,248.62,28.20114918]
[1737796503139,0.03,248.71,248.65,4.0216]
[1737796503299,0.03,248.71,248.65,24.42360904]
[1737796505722,0.03,248.71,248.67,4.0213]
[1737796505929,0.03,248.71,248.68,0.4019703]
[1737796506122,0.03,248.71,248.67,4.0213]
[1737796506626,0.03,248.71,248.68,24.17887289]
[1737796506826,0.03,248.71,248.7,44.776884]
[1737796507037,0.03,248.71,248.7,46.17876573]
[1737796507738,0.03,248.77,248.74,23.776884]
[1737796508033,0.03,248.77,248.75,0.40185724]
[1737796508621,0.03,248.77,248.76,44.776884]
[1737796509130,0.03,248.77,248.76,20.0]
[1737796509335,0.03,248.77,248.76,24.0199]
[1737796509631,0.03,248.77,248.76,336.0199]
[1737796509830,0.03,248.77,248.76,24.0199]
[1737796510526,0.03,248.77,248.76,47.796784]
[1737796511235,0.03,248.77,248.76,4.0199]
[1737796512933,0.03,248.77,248.69,83.5882]
[1737796513139,0.03,248.77,248.69,1.6882]
[1737796514013,0.03,248.77,248.72,4.0205]
[1737796514218,0.03,248.77,248.75,1.0]
[1737796514422,0.03,248.77,248.76,24.17869354]
[1737796515443,0.03,248.81,248.8,23.776884]
[1737796515615,0.03,248.85,248.83,23.776884]
[1737796515811,0.03,248.85,248.84,0.40169309]
[1737796516210,0.03,248.85,248.82,23.776884]
[1737796516530,0.03,248.85,248.81,1.0]
[1737796516738,0.03,248.85,248.79,21.8378]
[1737796517122,0.03,248.85,248.79,24.0193]
[1737796517311,0.03,248.85,248.77,4.0196]
[1737796518624,0.03,248.85,248.73,2.23963932]
[1737796518822,0.03,248.85,248.74,4.0202]
[1737796521042,0.03,248.85,248.72,20.0]
[1737796522846,0.03,248.85,248.72,24.0205]
[1737796523355,81.4,248.84,248.72,24.0205]
[1737796523762,81.4,248.84,248.73,20.40190658]
[1737796524846,81.4,248.84,248.74,27.797084]
[1737796525048,81.4,248.84,248.75,0.40185463]
[1737796525448,0.03,248.85,248.77,23.776884]
[1737796525641,0.03,248.85,248.78,0.40176969]
[1737796525836,0.03,248.85,248.78,82.30176969]
[1737796526154,0.03,248.85,248.78,81.9]
[1737796526536,0.03,248.85,248.79,4.0194]
[1737796527134,0.03,248.85,248.79,4.42121245]
[1737796531770,0.03,248.85,248.78,81.9]
[1737796532269,0.03,248.85,248.72,81.9]
[1737796532656,0.03,248.85,248.73,0.40188895]
[1737796532974,0.03,248.85,248.74,4.0201]
[1737796533777,0.03,248.85,248.76,4.0199]
[1737796534071,0.03,248.85,248.77,0.40184224]
[1737796535285,0.03,248.85,248.78,4.0196]
[1737796535579,0.03,248.85,248.79,0.40183516]
[1737796536484,0.03,248.85,248.8,4.0192]
[1737796538491,0.03,248.85,248.81,0.4017971]
[1737796538697,0.03,248.85,248.81,24.1786811]
[1737796539068,0.03,248.85,248.81,0.4017971]
[1737796539595,0.03,248.85,248.81,20.4017971]
[1737796540175,0.03,248.85,248.82,4.0189]
[1737796542194,0.03,248.85,248.79,4.0194]
[1737796542366,0.03,248.85,248.8,0.40180426]
[1737796543497,0.03,248.85,248.81,4.0191]
[1737796543706,0.03,248.85,248.77,219.5]
[1737796543881,0.03,248.85,248.78,4.0196]
[1737796544587,0.03,248.85,248.79,0.40180451]
[1737796544978,0.03,248.85,248.78,4.0196]
[1737796548190,0.03,248.85,248.76,4.42160033]
[1737796548381,0.03,248.85,248.76,4.0198]
[1737796549280,0.03,248.85,248.74,27.797084]
[1737796550579,0.03,248.85,248.74,4.0202]
[1737796550791,81.43,248.85,248.73,81.9]
[1737796550994,81.43,248.85,248.73,85.9203]
[1737796554405,81.43,248.85,248.73,81.9]
[1737796556004,81.43,248.85,248.72,4.0835]
[1737796562112,20.0,248.82,248.72,0.063]
[1737796562303,1.8572,248.81,248.72,0.063]
[1737796563014,1.8572,248.81,248.72,4.0835]
[1737796565811,2.76,248.83,248.73,23.776884]
[1737796566020,81.43,248.85,248.74,0.40185058]
[1737796567136,81.43,248.85,248.75,4.0201]
[1737796567810,0.03,248.85,248.75,4.0201]
[1737796570301,20.0,248.84,248.74,85.9202]
[1737796571534,0.03,248.85,248.74,85.9202]
[1737796571825,20.0,248.84,248.74,85.9202]
[1737796573930,101.4,248.84,248.74,4.0202]
[1737796574131,81.4,248.84,248.76,4.0199]
[1737796575114,81.4,248.84,248.75,0.4018591]
[1737796576709,81.4,248.84,248.76,4.0199]
[1737796577831,81.4,248.84,248.74,4.0201]
[1737796578207,81.4,248.84,248.73,20.0]
[1737796578424,81.4,248.84,248.72,4.0834]
[1737796579830,0.03,248.85,248.72,4.0834]
[1737796581105,20.0,248.84,248.72,4.0834]
[1737796581360,20.0,248.84,248.72,5.485321]
[1737796582446,0.03,248.85,248.72,5.485321]
[1737796583022,0.03,248.85,248.72,15.536721]
[1737796584342,0.03,248.85,248.73,23.776884]
[1737796584649,0.03,248.85,248.74,4.42205361]
[1737796585645,0.03,248.85,248.74,86.32205361]
[1737796585850,0.03,248.85,248.74,85.9202]
[1737796588042,23.776884,248.83,248.72,0.063]
[1737796588430,20.0,248.8,248.72,0.063]
[1737796588643,23.776884,248.83,248.72,0.063]
[1737796588644,20.0,248.79,248.72,0.063]
[1737796592627,20.0,248.74,248.72,0.063]
[1737796592941,22.76,248.74,248.72,0.063]
[1737796593130,2.76,248.74,248.72,0.063]
[1737796593545,22.76,248.74,248.72,0.063]
[1737796594249,81.4,248.73,248.72,0.063]
[1737796595837,2.76,248.74,248.72,0.063]
[1737796596038,2.76,248.74,248.68,3.5842]
[1737796596258,20.0,248.75,248.68,3.5842]
[1737796596641,20.0,248.75,248.64,0.40200379]
[1737796596642,20.0,248.75,248.65,4.0217]
[1737796597350,20.0,248.75,248.68,0.063]
[1737796602562,125.176884,248.74,248.68,0.063]
[1737796603165,126.946584,248.74,248.68,0.063]
[1737796603673,125.176884,248.74,248.68,0.063]
[1737796606470,81.4,248.73,248.68,0.063]
[1737796606655,20.0,248.7,248.68,0.063]
[1737796609684,81.4,248.72,248.68,0.063]
[1737796612463,81.4,248.71,248.68,0.063]
[1737796619977,84.16,248.77,248.68,4.0841]
[1737796620583,81.4,248.77,248.68,4.0841]
[1737796620768,84.16,248.77,248.68,4.0841]
[1737796623785,84.16,248.77,248.68,0.063]
[1737796623964,20.0,248.74,248.68,0.063]
[1737796624366,20.0,248.73,248.68,0.063]
[1737796625075,81.4,248.76,248.68,0.063]
[1737796625295,81.4,248.76,248.68,4.0841]
[1737796625687,2.76,248.77,248.68,4.0841]
[1737796626081,22.76,248.79,248.68,4.0841]
[1737796627276,20.0,248.78,248.68,0.063]
[1737796630391,20.0,248.73,248.68,0.063]
[1737796631389,20.0,248.74,248.68,0.063]
[1737796633104,81.4,248.77,248.68,0.063]
[1737796633894,20.0,248.74,248.68,0.063]
[1737796637703,20.0,248.73,248.68,0.063]
[1737796638381,81.4,248.76,248.68,0.063]
[1737796639389,0.03,248.78,248.69,4.021]
[1737796642701,0.03,248.78,248.7,12.4552]
[1737796644699,0.03,248.78,248.7,12.85715526]
[1737796646000,0.03,248.78,248.7,12.4552]
[1737796648809,0.03,248.78,248.72,4.0205]
[1737796648996,0.03,248.78,248.73,24.178788]
[1737796649192,0.03,248.78,248.74,1.0]
[1737796649399,0.03,248.78,248.75,0.40185405]
[1737796649921,0.03,248.78,248.77,23.776884]
[1737796650210,0.03,248.78,248.77,24.17868373]
[1737796650416,0.03,248.78,248.77,30.89288373]
[1737796651208,0.03,248.78,248.77,34.91258373]
[1737796651902,0.03,248.85,248.8,21.0]
[1737796652111,0.03,248.85,248.8,21.40174289]
[1737796652313,0.03,248.85,248.8,45.17862689]
[1737796653021,0.03,248.85,248.82,1.0]
[1737796653321,0.03,248.85,248.83,0.40171556]
[1737796653487,0.03,248.85,248.84,27.795484]
[1737796653685,0.03,248.85,248.84,28.795484]
[1737796654490,0.03,248.85,248.84,27.795484]
[1737796655412,0.03,248.85,248.84,28.795484]
[1737796656116,0.03,248.85,248.84,37.650784]
[1737796656605,0.03,248.88,248.86,24.776884]
[1737796656798,0.03,248.88,248.86,107.07851073]
[1737796657003,0.03,248.88,248.86,106.676884]
[1737796657206,0.03,248.88,248.87,23.776884]
[1737796657897,0.03,248.88,248.87,27.794984]
[1737796658222,0.03,248.88,248.87,28.19659255]
[1737796659124,0.03,248.88,248.87,340.19659255]
[1737796659432,0.03,248.88,248.87,340.794984]
[1737796660625,0.03,248.88,248.87,28.794984]
[1737796660920,0.03,248.88,248.87,29.19660249]
[1737796662513,0.03,248.88,248.87,27.794984]
[1737796662707,0.03,248.88,248.87,4.0181]
[1737796663300,0.03,248.88,248.87,4.41979621]
[1737796667040,0.03,248.88,248.87,29.19668021]
[1737796667404,0.03,248.88,248.87,30.19668021]
[1737796668315,0.03,248.96,248.9,1.0]
[1737796668520,0.03,248.96,248.91,24.17850048]
[1737796670040,0.03,248.96,248.92,4.0173]
[1737796673438,0.03,248.96,248.9,85.9175]
[1737796686878,0.03,248.96,248.92,1.0]
[1737796687081,0.03,248.96,248.93,24.17845028]
[1737796688180,0.03,248.96,248.94,4.017]
[1737796688483,0.03,248.96,248.92,5.8258]
[1737796690575,0.03,248.96,248.92,4.0172]
[1737796692708,0.03,248.96,248.92,85.9172]
[1737796694402,0.03,248.96,248.94,4.017]
[1737796694980,83.79,249.06,248.94,4.017]
[1737796695507,81.05,249.06,248.96,4.0167]
[1737796696606,8.9823,249.09,248.96,4.0167]
[1737796699807,8.9823,249.09,248.94,81.9]
[1737796699808,20.0,249.06,248.94,81.9]
[1737796700195,20.0,249.06,248.94,85.9169]
[1737796701309,8.9823,249.09,248.96,4.0167]
[1737796701513,90.0323,249.09,248.96,4.0167]
[1737796702088,90.0323,249.09,248.96,4.0797]
[1737796702494,92.7723,249.09,248.96,4.0797]
[1737796704503,20.0,249.06,248.96,4.0797]
[1737796706513,81.08,249.09,248.98,20.0]
[1737796706704,0.03,249.09,249.01,20.0]
[1737796706913,0.03,249.09,249.02,0.40142669]
[1737796707418,0.03,249.09,249.02,24.17831069]
[1737796707723,0.03,249.09,249.03,4.0155]
[1737796710506,0.03,249.09,249.03,85.9155]
[1737796710822,0.03,249.09,249.04,4.41661092]
[1737796712514,0.03,249.09,249.03,81.9]
[1737796716315,0.03,249.09,248.97,221.2648]
[1737796716524,0.03,249.09,248.98,27.793184]
[1737796716699,0.03,249.09,248.98,4.0163]
[1737796718822,20.0,249.07,248.97,1.7648]
[1737796719028,20.0,249.07,248.96,4.0796]
[1737796720721,20.0,249.05,248.96,0.063]
[1737796721798,81.05,249.04,248.96,0.063]
[1737796725130,81.05,249.03,248.96,0.063]
[1737796725435,20.0,248.99,248.96,0.063]
[1737796725901,1.8328,248.98,248.96,0.063]
[1737796727109,104.826884,248.97,248.96,0.063]
[1737796727739,104.826884,248.97,248.96,7.635e-05]
[1737796727942,23.776884,248.93,248.88,0.063]
[1737796728220,81.4,248.92,248.88,0.063]
[1737796729640,20.0,248.89,248.88,0.063]
[1737796729817,22.74,248.89,248.88,0.063]
[1737796735253,2.74,248.89,248.88,0.063]
[1737796736048,48.341184,248.89,248.88,0.063]
[1737796738647,24.5643,248.89,248.88,0.063]
[1737796740634,22.74,248.89,248.88,0.063]
[1737796741034,2.74,248.89,248.88,0.063]
[1737796742260,22.74,248.89,248.88,0.063]
[1737796743254,2.74,248.92,248.88,0.063]
[1737796744151,2.74,248.93,248.88,0.063]
[1737796744341,22.74,248.93,248.88,0.063]
[1737796744864,2.74,248.93,248.88,0.063]
[1737796746148,20.0,248.9,248.88,0.063]
[1737796747260,2.74,248.93,248.88,0.063]
[1737796747460,0.03,248.97,248.88,4.0808]
[1737796751661,0.03,248.97,248.91,23.776884]
[1737796753069,0.03,248.97,248.92,4.0173]
[1737796753267,0.03,248.97,248.9,1.7675]
[1737796753763,0.03,248.97,248.9,5.7851]
[1737796755848,0.03,248.97,248.91,23.776884]
[1737796756042,0.03,248.97,248.93,23.776884]
[1737796756844,0.03,248.97,248.93,24.17846739]
[1737796757346,0.03,248.97,248.94,4.017]
[1737796757548,0.03,248.97,248.95,23.776884]
[1737796758466,0.03,248.97,248.94,24.1784406]
[1737796758677,0.03,248.97,248.96,4.0167]
[1737796759347,0.03,248.97,248.96,27.793584]
[1737796765171,0.03,248.97,248.93,219.5]
[1737796765369,0.03,248.97,248.94,4.017]
[1737796766571,0.03,248.97,248.94,27.793884]
[1737796767872,0.03,248.97,248.96,4.0167]
[1737796769873,0.03,248.97,248.96,109.693584]
[1737796770774,0.03,248.97,248.96,85.9167]
[1737796771569,0.03,248.97,248.96,81.9]
[1737796774074,0.03,248.97,248.93,4.0171]
[1737796775075,0.03,248.97,248.9,1.7675]
[1737796775269,0.03,248.97,248.91,4.0175]
[1737796777752,0.03,248.97,248.88,81.963]
[1737796777947,0.03,248.97,248.89,4.0178]
[1737796782975,0.03,248.97,248.9,27.794384]
[1737796785673,0.03,248.97,248.88,0.063]
[1737796785883,2.74,248.96,248.88,0.063]
[1737796787777,2.74,248.96,248.88,4.0808]
[1737796791890,2.77,248.96,248.88,4.0808]
[1737796794284,2.77,248.96,248.88,24.0808]
[1737796794285,0.03,248.96,248.88,24.0808]
[1737796794481,0.03,248.96,248.89,23.776884]
[1737796795387,0.03,248.96,248.9,4.0176]
[1737796800696,0.03,248.96,248.89,81.9]
[1737796800995,0.03,248.96,248.88,0.063]
[1737796803802,83.1086,248.95,248.88,0.063]
[1737796804001,20.0,248.92,248.88,0.063]
[1737796804215,81.4,248.91,248.88,0.063]
[1737796807194,81.4,248.9,248.88,0.063]
[1737796807397,2.74,248.89,248.88,0.063]
[1737796811534,2.74,248.93,248.88,0.063]
[1737796815022,2.74,248.93,248.88,4.0809]
[1737796815384,0.03,248.96,248.88,4.0809]
[1737796817407,0.03,248.96,248.89,4.0177]
[1737796818533,0.03,248.96,248.88,0.063]
[1737796819115,81.4,248.95,248.88,0.063]
[1737796819308,20.0,248.92,248.8,0.063]
[1737796819639,27.209,248.92,248.8,0.063]
[1737796819802,20.0,248.88,248.8,0.063]
[1737796820317,81.4,248.87,248.8,0.063]
[1737796820614,84.14,248.86,248.8,0.063]
[1737796823031,84.14,248.86,248.8,4.0822]
[1737796823430,84.14,248.86,248.8,0.063]
[1737796830755,20.0,248.83,248.8,0.063]
[1737796830917,81.4,248.85,248.72,4.0204]
[1737796831111,81.4,248.84,248.72,85.9204]
[1737796831313,81.4,248.84,248.73,23.776884]
[1737796832950,81.4,248.84,248.75,23.776884]
[1737796833844,81.4,248.84,248.73,27.797284]
[1737796834041,2.74,248.86,248.76,20.0]
[1737796834264,2.74,248.86,248.77,23.776884]
[1737796835263,2.74,248.86,248.79,23.776884]
[1737796836848,2.74,248.86,248.8,4.0192]
[1737796837530,81.4,248.9,248.8,4.0192]
[1737796837743,84.14,248.9,248.8,4.0192]
[1737796838124,81.4,248.9,248.8,4.0192]
[1737796838449,84.14,248.9,248.8,4.0192]
[1737796841455,84.14,248.9,248.79,0.063]
[1737796841750,2.74,248.89,248.79,0.063]
[1737796842057,81.4,248.9,248.79,27.859184]
[1737796845334,81.4,248.9,248.79,4.0823]
[1737796846043,81.4,248.9,248.79,0.063]
[1737796846252,81.4,248.89,248.79,0.063]
[1737796846452,1.8437,248.88,248.79,0.063]
[1737796846652,20.0,248.86,248.79,0.063]
[1737796847040,20.0,248.82,248.79,0.063]
[1737796850067,81.4,248.81,248.79,0.063]
[1737796850245,84.14,248.8,248.79,0.063]
[1737796851456,80.14769957,248.8,248.79,0.063]
[1737796853950,77.40769957,248.8,248.79,0.063]
[1737796854257,0.03,248.84,248.79,0.063]
[1737796854454,0.03,248.84,248.79,4.0824]
[1737796855753,0.03,248.84,248.8,23.776884]
[1737796855956,0.03,248.84,248.81,4.0191]
[1737796859245,0.03,248.84,248.79,0.063]
[1737796860272,0.03,248.84,248.79,4.0823]
[1737796864166,0.03,248.84,248.79,86.38415766]
[1737796864358,0.03,248.96,248.84,23.776884]
[1737796864570,0.03,248.96,248.87,20.0]
[1737796864770,0.03,248.96,248.88,23.776884]
[1737796865380,0.03,248.96,248.9,23.776884]
[1737796865764,0.03,248.96,248.84,4.0186]
[1737796866177,0.03,248.96,248.84,14.0652]
[1737796866474,0.03,248.96,248.87,20.0]
[1737796867580,0.03,248.96,248.88,4.018]
[1737796869580,0.03,248.96,248.85,23.776884]
[1737796869760,0.03,248.96,248.87,23.776884]
[1737796871279,0.03,248.96,248.84,27.795384]
[1737796874581,0.03,248.96,248.84,4.0185]
[1737796875386,0.03,248.96,248.86,4.0183]
[1737796876380,0.03,248.96,248.87,23.776884]
[1737796877285,0.03,248.96,248.86,85.9183]
[1737796879075,0.03,248.96,248.87,27.794884]
[1737796883693,0.03,248.96,248.87,37.840284]
[1737796883987,0.03,248.96,248.9,20.0]
[1737796884192,0.03,248.96,248.91,23.776884]
[1737796884407,0.03,248.96,248.93,23.776884]
[1737796885265,0.03,248.96,248.91,23.776884]
[1737796885495,0.03,248.96,248.91,27.794384]
[1737796886398,0.03,248.96,248.95,23.776884]
[1737796887370,0.03,248.96,248.95,27.793684]
[1737796891592,0.03,248.96,248.95,109.693684]
[1737796891890,0.03,248.96,248.95,85.9168]
[1737796893403,0.03,248.96,248.95,109.693684]
[1737796898300,0.03,248.96,248.95,110.693684]
[1737796898478,0.03,248.96,248.95,109.693684]
[1737796898685,0.03,248.96,248.95,110.693684]
[1737796899584,0.03,248.97,248.96,24.776884]
[1737796899791,0.03,249.09,249.0,23.776884]
[1737796900080,0.03,249.09,249.04,23.776884]
[1737796900300,0.03,249.09,249.05,0.40136543]
[1737796900506,0.03,249.09,249.06,23.776884]
[1737796900705,0.03,249.09,249.07,0.40137057]
[1737796901404,0.03,249.09,249.08,20.0]
[1737796901708,0.03,249.1,249.08,20.0]
[1737796901709,1.7673,249.3,249.16,20.0]
[1737796902010,1.7673,249.3,249.17,20.40118019]
[1737796902395,1.7673,249.3,249.17,20.0]
[1737796902594,1.7673,249.3,249.18,43.776884]
[1737796903105,1.7673,249.3,249.18,47.789984]
[1737796903485,1.7673,249.3,249.18,43.776884]
[1737796907207,1.7673,249.3,249.12,4.0141]
[1737796907580,1.7673,249.3,249.15,23.776884]
[1737796908182,79.17499957,249.3,249.16,20.0]
[1737796909313,79.17499957,249.3,249.17,23.776884]
[1737796910400,79.17499957,249.3,249.18,4.0131]
[1737796911183,79.17499957,249.3,249.2,20.0]
[1737796912506,1.7673,249.3,249.2,20.0]
[1737796913208,1.7673,249.3,249.19,4.0128]
[1737796915317,1.7673,249.3,249.17,23.776884]
[1737796915493,20.0,249.28,249.1,10.036]
[1737796916002,20.0,249.28,249.15,20.0]
[1737796916627,20.0,249.28,249.16,4.0134]
[1737796916912,77.40769957,249.27,249.12,81.9]
[1737796917090,77.40769957,249.27,249.12,85.914]
[1737796917508,77.40769957,249.27,249.13,23.776884]
[1737796918215,77.40769957,249.27,249.15,23.776884]
[1737796919497,77.40769957,249.27,249.16,4.0134]
[1737796921121,77.40769957,249.27,249.15,0.063]
[1737796921294,20.0,249.24,249.15,0.063]
[1737796921821,20.0,249.24,249.15,4.0766]
[1737796922004,77.40769957,249.26,249.16,23.776884]
[1737796922394,77.40769957,249.26,249.15,4.0766]
[1737796925215,77.40769957,249.26,249.15,0.063]
[1737796925421,77.40769957,249.26,249.16,4.0134]
[1737796927513,1.7673,249.3,249.18,20.0]
[1737796927730,1.7673,249.3,249.17,24.17812503]
[1737796928230,0.0001,249.21,249.2,43.776884]
[1737796928618,0.0001,249.21,249.2,48.19080196]
[1737796930328,0.03,249.34,249.2,48.19080196]
[1737796930329,0.03,249.34,249.25,23.776884]
[1737796930752,0.03,249.34,249.33,23.776884]
[1737796931822,0.03,249.34,249.15,137.663]
[1737796932021,1.7517,249.32,249.17,10.57]
[1737796932216,1.7517,249.32,249.18,0.40117522]
[1737796933035,1.7517,249.32,249.21,43.776884]
[1737796933239,1.7517,249.32,249.21,20.0]
[1737796933645,1.7517,249.32,249.2,43.776884]
[1737796933850,1.7517,249.32,249.22,20.0]
[1737796934160,1.7517,249.32,249.24,23.776884]
[1737796935657,1.7517,249.32,249.25,20.0]
[1737796935844,6.7723,249.33,249.26,23.776884]
[1737796936050,0.03,249.34,249.26,23.776884]
[1737796936944,0.03,249.34,249.28,23.776884]
[1737796938234,0.03,249.34,249.2,137.6]
[1737796938437,0.03,249.34,249.21,22.9926]
[1737796938656,0.03,249.34,249.22,23.776884]
[1737796939165,0.03,249.34,249.26,23.776884]
[1737796940154,0.03,249.34,249.21,4.0126]
[1737796940533,0.03,249.34,249.22,23.776884]
[1737796941237,0.03,249.34,249.19,4.013]
[1737796942045,0.03,249.34,249.2,23.776884]
[1737796942854,0.03,249.34,249.16,23.776884]
[1737796943041,0.03,249.34,249.19,23.776884]
[1737796944169,0.03,249.34,249.2,4.0128]
[1737796944344,0.03,249.34,249.22,20.0]
[1737796945061,0.03,249.34,249.23,4.0123]
[1737796946860,0.03,249.34,249.16,0.40117727]
[1737796947040,77.43769957,249.34,249.17,4.0133]
[1737796947241,77.43769957,249.34,249.18,23.776884]
[1737796947440,20.0,249.3,249.15,0.063]
[1737796948346,8.5569,249.25,249.15,0.063]
[1737796948540,2.74,249.24,249.15,0.063]
[1737796949569,1.15295438,249.24,249.15,0.063]
[1737796952573,20.0,249.22,249.15,0.063]
[1737796953380,20.0,249.2,249.15,0.063]
[1737796955885,77.40769957,249.23,249.15,0.063]
[1737796963083,77.40769957,249.22,249.15,0.063]
[1737796965082,78.40769957,249.22,249.15,0.063]
[1737796966169,20.0,249.18,249.15,0.063]
[1737796967384,20.0,249.17,249.15,0.063]
[1737796969388,97.40769957,249.17,249.15,0.063]
[1737796970085,9.2301,249.16,249.15,0.063]
[1737796973211,10.2301,249.16,249.15,0.0001]
[1737796973411,11.2301,249.16,249.15,0.0001]
[1737796974213,35.006984,249.16,249.15,0.0001]
[1737796975605,34.006984,249.16,249.15,0.0001]
[1737796976084,50.069159,249.16,249.15,0.0001]
[1737796977207,34.006984,249.16,249.15,0.0001]
[1737796979387,34.006984,249.16,248.97,7.0745]
[1737796979712,20.0,249.09,248.97,0.063]
[1737796979897,2.74,249.08,248.97,0.063]
[1737796980084,3.74,249.08,248.97,0.063]
[1737796981110,20.0,249.04,248.97,0.063]
[1737796981317,21.0,249.04,248.97,0.063]
[1737796981499,20.0,249.03,248.97,0.063]
[1737796981884,101.4,249.03,248.97,0.063]
[1737796983010,81.4,249.02,248.97,0.063]
[1737796986198,2.74,249.04,248.97,0.063]
[1737796986526,83.2272,249.13,248.97,0.063]
[1737796986527,2.74,249.1,248.99,1.7927]
[1737796986694,2.74,249.1,249.0,23.776884]
[1737796990827,2.74,249.13,249.0,23.776884]
[1737796992120,2.74,249.14,249.0,27.792884]
[1737796992619,81.4,249.13,249.0,27.792884]
[1737796998026,20.0,249.1,248.99,1.7927]
[1737796998612,20.0,249.06,248.99,1.7927]
[1737796998815,20.0,249.06,248.97,0.063]
[1737796999019,20.0,249.02,248.97,0.063]
[1737796999243,84.14,249.01,248.97,0.063]
[1737797004611,81.4,249.0,248.97,0.063]
[1737797007622,81.4,248.99,248.97,0.063]